[Event "Titled Tuesday Blitz November 29 Early 2022"]
[White "De Souza, Cristiano Gomes"]
[Black "Vifleemskaia, Svetlana"]
[WhiteFideId "2151758"]
[BlackFideId "4129490"]
[WhiteElo "2068"]
[BlackElo "1929"]
[Result "0-1"]
[Round "08"]
[TimeControl "180+1"]
[Date "2022.11.30"]
[WhiteClock "0:00:10"]
[BlackClock "0:01:17"]

1. d4 {[%clk 0:03:00]}  Nf6 {[%clk 0:02:47]} 2. c4 {[%clk 0:03:00]}  e6 {[%clk 0:02:46]} 3. Nf3 {[%clk 0:02:59]}  Bb4+ {[%clk 0:02:46]} 4. Bd2 {[%clk 0:02:59]}  Qe7 {[%clk 0:02:46]} 5. a3 {[%clk 0:02:58]}  Bxd2+ {[%clk 0:02:45]} 6. Qxd2 {[%clk 0:02:58]}  d6 {[%clk 0:02:46]} 7. Nc3 {[%clk 0:02:58]}  O-O {[%clk 0:02:45]} 8. e4 {[%clk 0:02:57]}  e5 {[%clk 0:02:45]} 9. d5 {[%clk 0:02:57]}  a5 {[%clk 0:02:45]} 10. Bd3 {[%clk 0:02:56]}  a4 {[%clk 0:02:44]} 11. Bc2 {[%clk 0:02:55]}  Bd7 {[%clk 0:02:43]} 12. O-O {[%clk 0:02:55]}  c6 {[%clk 0:02:40]} 13. Rfe1 {[%clk 0:02:47]}  c5 {[%clk 0:02:34]} 14. Qd1 {[%clk 0:02:41]}  Qe8 {[%clk 0:02:32]} 15. h3 {[%clk 0:02:34]}  Nh5 {[%clk 0:02:27]} 16. Ne2 {[%clk 0:02:31]}  b5 {[%clk 0:02:24]} 17. cxb5 {[%clk 0:02:30]}  Bxb5 {[%clk 0:02:25]} 18. Ng3 {[%clk 0:02:30]}  Nf4 {[%clk 0:02:24]} 19. Rc1 {[%clk 0:02:19]}  g6 {[%clk 0:02:22]} 20. Kh2 {[%clk 0:02:13]}  Nd7 {[%clk 0:02:21]} 21. Nf1 {[%clk 0:02:06]}  Nb6 {[%clk 0:02:08]} 22. Ne3 {[%clk 0:02:04]}  Nc4 {[%clk 0:02:04]} 23. Nxc4 {[%clk 0:01:54]}  Bxc4 {[%clk 0:02:05]} 24. g3 {[%clk 0:01:54]}  Nh5 {[%clk 0:02:03]} 25. Qd2 {[%clk 0:01:44]}  Kg7 {[%clk 0:02:01]} 26. Bd3 {[%clk 0:01:37]}  Bxd3 {[%clk 0:01:56]} 27. Qxd3 {[%clk 0:01:36]}  Rb8 {[%clk 0:01:56]} 28. Re2 {[%clk 0:01:34]}  Qb5 {[%clk 0:01:54]} 29. Rc4 {[%clk 0:01:30]}  h6 {[%clk 0:01:47]} 30. Qc2 {[%clk 0:01:29]}  Ra8 {[%clk 0:01:46]} 31. Re3 {[%clk 0:01:25]}  Rfb8 {[%clk 0:01:46]} 32. Re2 {[%clk 0:01:09]}  Qb3 {[%clk 0:01:44]} 33. Qxb3 {[%clk 0:01:04]}  Rxb3 {[%clk 0:01:45]} 34. Kg2 {[%clk 0:01:00]}  Kf8 {[%clk 0:01:43]} 35. Rec2 {[%clk 0:00:53]}  Ke7 {[%clk 0:01:42]} 36. Nd2 {[%clk 0:00:50]}  Rb5 {[%clk 0:01:41]} 37. Nb1 {[%clk 0:00:46]}  f5 {[%clk 0:01:38]} 38. Nc3 {[%clk 0:00:42]}  Rba5 {[%clk 0:01:38]} 39. exf5 {[%clk 0:00:40]}  gxf5 {[%clk 0:01:38]} 40. Re2 {[%clk 0:00:39]}  Kf6 {[%clk 0:01:34]} 41. Nd1 {[%clk 0:00:17]}  Kg6 {[%clk 0:01:32]} 42. Ne3 {[%clk 0:00:16]}  Nf6 {[%clk 0:01:31]} 43. f3 {[%clk 0:00:14]}  Rb5 {[%clk 0:01:27]} 44. g4 {[%clk 0:00:12]}  f4 {[%clk 0:01:25]} 45. Nf5 {[%clk 0:00:12]}  Nxd5 {[%clk 0:01:21]} 46. Nxd6 {[%clk 0:00:12]}  Ne3+ {[%clk 0:01:21]} 47. Rxe3 {[%clk 0:00:12]}  Rxb2+ {[%clk 0:01:21]} 48. Kf1 {[%clk 0:00:10]}  fxe3 {[%clk 0:01:20]} 49. Re4 {[%clk 0:00:10]}  Rd8 {[%clk 0:01:17]} 0-1


[Site "https://www.chess.com"]

[Event "Titled Tuesday Blitz November 29 Early 2022"]
[White "Deac, Bogdan-Daniel"]
[Black "Caruana, Fabiano"]
[WhiteFideId "1226380"]
[BlackFideId "2020009"]
[WhiteElo "2648"]
[BlackElo "2847"]
[Result "1/2-1/2"]
[Round "08"]
[TimeControl "180+1"]
[Date "2022.11.30"]
[WhiteClock "0:00:06"]
[BlackClock "0:00:11"]

1. e4 {[%clk 0:03:00]}  e5 {[%clk 0:02:59]} 2. Nf3 {[%clk 0:03:01]}  Nc6 {[%clk 0:03:00]} 3. Bb5 {[%clk 0:03:01]}  a6 {[%clk 0:02:59]} 4. Ba4 {[%clk 0:03:01]}  Nf6 {[%clk 0:03:00]} 5. O-O {[%clk 0:03:02]}  b5 {[%clk 0:02:59]} 6. Bb3 {[%clk 0:03:02]}  Bc5 {[%clk 0:03:00]} 7. c3 {[%clk 0:03:00]}  d6 {[%clk 0:03:00]} 8. d4 {[%clk 0:03:00]}  Bb6 {[%clk 0:03:00]} 9. Be3 {[%clk 0:03:00]}  O-O {[%clk 0:02:59]} 10. Nbd2 {[%clk 0:03:01]}  h6 {[%clk 0:02:59]} 11. h3 {[%clk 0:03:00]}  Re8 {[%clk 0:02:59]} 12. Re1 {[%clk 0:02:59]}  Bd7 {[%clk 0:02:59]} 13. Bc2 {[%clk 0:02:49]}  Rb8 {[%clk 0:02:57]} 14. a3 {[%clk 0:02:48]}  Na7 {[%clk 0:02:55]} 15. b4 {[%clk 0:02:43]}  Nc8 {[%clk 0:02:35]} 16. Bd3 {[%clk 0:02:35]}  c6 {[%clk 0:02:31]} 17. Qc2 {[%clk 0:02:29]}  Bc7 {[%clk 0:02:30]} 18. c4 {[%clk 0:02:22]}  Ne7 {[%clk 0:02:28]} 19. c5 {[%clk 0:02:12]}  Ng6 {[%clk 0:02:27]} 20. cxd6 {[%clk 0:02:11]}  Bxd6 {[%clk 0:02:27]} 21. dxe5 {[%clk 0:02:10]}  Nxe5 {[%clk 0:02:28]} 22. Nxe5 {[%clk 0:02:10]}  Bxe5 {[%clk 0:02:28]} 23. Rad1 {[%clk 0:02:10]}  Qc7 {[%clk 0:02:28]} 24. Nf3 {[%clk 0:02:07]}  Bf4 {[%clk 0:01:59]} 25. Bxf4 {[%clk 0:02:03]}  Qxf4 {[%clk 0:02:00]} 26. e5 {[%clk 0:02:04]}  Nd5 {[%clk 0:01:50]} 27. Bh7+ {[%clk 0:02:00]}  Kh8 {[%clk 0:01:50]} 28. Re4 {[%clk 0:02:00]}  Bf5 {[%clk 0:01:48]} 29. Rxf4 {[%clk 0:01:12]}  Bxc2 {[%clk 0:01:47]} 30. Rxd5 {[%clk 0:01:12]}  Kxh7 {[%clk 0:01:41]} 31. Rc5 {[%clk 0:00:58]}  Bb3 {[%clk 0:01:19]} 32. Rxc6 {[%clk 0:00:45]}  Ra8 {[%clk 0:01:02]} 33. Rd4 {[%clk 0:00:16]}  a5 {[%clk 0:00:57]} 34. Rc5 {[%clk 0:00:15]}  Reb8 {[%clk 0:00:45]} 35. Nd2 {[%clk 0:00:15]}  Be6 {[%clk 0:00:44]} 36. Ne4 {[%clk 0:00:15]}  axb4 {[%clk 0:00:43]} 37. axb4 {[%clk 0:00:16]}  Ra1+ {[%clk 0:00:40]} 38. Kh2 {[%clk 0:00:16]}  Re1 {[%clk 0:00:33]} 39. Nd6 {[%clk 0:00:14]}  Ra8 {[%clk 0:00:32]} 40. Rxb5 {[%clk 0:00:13]}  Ra2 {[%clk 0:00:32]} 41. Rf4 {[%clk 0:00:13]}  Ree2 {[%clk 0:00:21]} 42. Nxf7 {[%clk 0:00:13]}  Rxf2 {[%clk 0:00:20]} 43. Rxf2 {[%clk 0:00:13]}  Rxf2 {[%clk 0:00:21]} 44. Nd8 {[%clk 0:00:14]}  Bf5 {[%clk 0:00:12]} 45. e6 {[%clk 0:00:12]}  Be4 {[%clk 0:00:12]} 46. Kg3 {[%clk 0:00:12]}  Rxg2+ {[%clk 0:00:11]} 47. Kf4 {[%clk 0:00:12]}  Bg6 {[%clk 0:00:10]} 48. Re5 {[%clk 0:00:12]}  Rb2 {[%clk 0:00:09]} 49. b5 {[%clk 0:00:11]}  Rb4+ {[%clk 0:00:09]} 50. Kg3 {[%clk 0:00:11]}  Be8 {[%clk 0:00:10]} 51. Nc6 {[%clk 0:00:10]}  Rb3+ {[%clk 0:00:10]} 52. Kh2 {[%clk 0:00:08]}  Kg6 {[%clk 0:00:11]} 53. e7 {[%clk 0:00:08]}  Kf6 {[%clk 0:00:11]} 54. Rc5 {[%clk 0:00:08]}  g5 {[%clk 0:00:09]} 55. Rd5 {[%clk 0:00:08]}  Bxc6 {[%clk 0:00:09]} 56. bxc6 {[%clk 0:00:08]}  Kxe7 {[%clk 0:00:09]} 57. Rd7+ {[%clk 0:00:07]}  Ke6 {[%clk 0:00:09]} 58. Rh7 {[%clk 0:00:07]}  Rc3 {[%clk 0:00:08]} 59. Rxh6+ {[%clk 0:00:07]}  Kf5 {[%clk 0:00:09]} 60. Kg2 {[%clk 0:00:07]}  Kf4 {[%clk 0:00:08]} 61. Kf2 {[%clk 0:00:07]}  Rc2+ {[%clk 0:00:08]} 62. Ke1 {[%clk 0:00:08]}  g4 {[%clk 0:00:08]} 63. hxg4 {[%clk 0:00:06]}  Kxg4 {[%clk 0:00:09]} 64. Kd1 {[%clk 0:00:07]}  Rc5 {[%clk 0:00:08]} 65. Kd2 {[%clk 0:00:07]}  Kg5 {[%clk 0:00:08]} 66. Rd6 {[%clk 0:00:06]}  Kf5 {[%clk 0:00:09]} 67. Kd3 {[%clk 0:00:07]}  Ke5 {[%clk 0:00:09]} 68. Rh6 {[%clk 0:00:07]}  Kd5 {[%clk 0:00:10]} 69. Rh5+ {[%clk 0:00:05]}  Kxc6 {[%clk 0:00:10]} 70. Rxc5+ {[%clk 0:00:06]}  Kxc5 {[%clk 0:00:11]} 1/2-1/2


[Site "https://www.chess.com"]

[Event "Titled Tuesday Blitz November 29 Early 2022"]
[White "Dubov, Daniil"]
[Black "Firouzja, Alireza"]
[WhiteFideId "24126055"]
[BlackFideId "12573981"]
[WhiteElo "2791"]
[BlackElo "2903"]
[Result "1/2-1/2"]
[Round "08"]
[TimeControl "180+1"]
[Date "2022.11.30"]
[WhiteClock "0:00:05"]
[BlackClock "0:00:07"]

1. e4 {[%clk 0:03:00]}  c5 {[%clk 0:02:49]} 2. Nc3 {[%clk 0:03:00]}  Nc6 {[%clk 0:02:46]} 3. g3 {[%clk 0:03:00]}  g6 {[%clk 0:02:46]} 4. Bg2 {[%clk 0:03:00]}  Bg7 {[%clk 0:02:46]} 5. Nge2 {[%clk 0:03:01]}  d6 {[%clk 0:02:46]} 6. O-O {[%clk 0:03:01]}  e6 {[%clk 0:02:46]} 7. d3 {[%clk 0:03:01]}  Nge7 {[%clk 0:02:46]} 8. Bg5 {[%clk 0:03:00]}  Rb8 {[%clk 0:02:38]} 9. a4 {[%clk 0:02:59]}  a6 {[%clk 0:02:35]} 10. Qd2 {[%clk 0:02:59]}  h6 {[%clk 0:02:35]} 11. Be3 {[%clk 0:02:58]}  Nd4 {[%clk 0:02:35]} 12. f4 {[%clk 0:02:58]}  h5 {[%clk 0:02:30]} 13. Bf2 {[%clk 0:02:57]}  O-O {[%clk 0:02:25]} 14. Nxd4 {[%clk 0:02:57]}  cxd4 {[%clk 0:02:26]} 15. Ne2 {[%clk 0:02:57]}  e5 {[%clk 0:02:26]} 16. c3 {[%clk 0:02:58]}  dxc3 {[%clk 0:02:23]} 17. Nxc3 {[%clk 0:02:58]}  b5 {[%clk 0:02:16]} 18. axb5 {[%clk 0:02:56]}  axb5 {[%clk 0:02:17]} 19. Ba7 {[%clk 0:02:42]}  Rb7 {[%clk 0:02:16]} 20. Be3 {[%clk 0:02:42]}  b4 {[%clk 0:02:16]} 21. Ne2 {[%clk 0:02:41]}  d5 {[%clk 0:02:08]} 22. fxe5 {[%clk 0:02:15]}  dxe4 {[%clk 0:02:06]} 23. Bxe4 {[%clk 0:01:30]}  Bxe5 {[%clk 0:02:04]} 24. Bh6 {[%clk 0:01:28]}  Re8 {[%clk 0:02:01]} 25. Qg5 {[%clk 0:01:25]}  Bxb2 {[%clk 0:01:52]} 26. Ra8 {[%clk 0:01:18]}  Qb6+ {[%clk 0:01:50]} 27. Kh1 {[%clk 0:01:15]}  Ra7 {[%clk 0:01:40]} 28. Rxa7 {[%clk 0:00:53]}  Qxa7 {[%clk 0:01:41]} 29. Qb5 {[%clk 0:00:53]}  Bd7 {[%clk 0:01:22]} 30. Qxb4 {[%clk 0:00:53]}  Bh8 {[%clk 0:01:20]} 31. Bf4 {[%clk 0:00:44]}  Bc6 {[%clk 0:01:10]} 32. Qc4 {[%clk 0:00:30]}  Qd7 {[%clk 0:01:08]} 33. Nc3 {[%clk 0:00:27]}  Rc8 {[%clk 0:00:59]} 34. Ne2 {[%clk 0:00:15]}  Nf5 {[%clk 0:00:51]} 35. Qb3 {[%clk 0:00:14]}  Re8 {[%clk 0:00:49]} 36. Qc4 {[%clk 0:00:14]}  Bb5 {[%clk 0:00:44]} 37. Qc2 {[%clk 0:00:12]}  Bg7 {[%clk 0:00:37]} 38. Kg1 {[%clk 0:00:09]}  Rc8 {[%clk 0:00:35]} 39. Qb3 {[%clk 0:00:08]}  Rd8 {[%clk 0:00:32]} 40. Kg2 {[%clk 0:00:08]}  Bxd3 {[%clk 0:00:21]} 41. Bxd3 {[%clk 0:00:08]}  Qxd3 {[%clk 0:00:22]} 42. Qxd3 {[%clk 0:00:08]}  Rxd3 {[%clk 0:00:23]} 43. Rf2 {[%clk 0:00:07]}  Bf6 {[%clk 0:00:22]} 44. Ng1 {[%clk 0:00:07]}  Bd4 {[%clk 0:00:21]} 45. Re2 {[%clk 0:00:07]}  Bxg1 {[%clk 0:00:15]} 46. Kxg1 {[%clk 0:00:07]}  f6 {[%clk 0:00:15]} 47. Rd2 {[%clk 0:00:06]}  Rb3 {[%clk 0:00:16]} 48. Rd5 {[%clk 0:00:05]}  Kf7 {[%clk 0:00:15]} 49. Ra5 {[%clk 0:00:05]}  Nd4 {[%clk 0:00:15]} 50. Ra2 {[%clk 0:00:05]}  g5 {[%clk 0:00:14]} 51. Bd2 {[%clk 0:00:05]}  Rd3 {[%clk 0:00:14]} 52. Kg2 {[%clk 0:00:04]}  Kg6 {[%clk 0:00:13]} 53. Bb4 {[%clk 0:00:04]}  Nf3 {[%clk 0:00:13]} 54. Ra6 {[%clk 0:00:03]}  Ne5 {[%clk 0:00:12]} 55. Ra2 {[%clk 0:00:03]}  Ng4 {[%clk 0:00:11]} 56. Be1 {[%clk 0:00:03]}  Ne3+ {[%clk 0:00:11]} 57. Kf2 {[%clk 0:00:03]}  Ng4+ {[%clk 0:00:11]} 58. Kg2 {[%clk 0:00:03]}  Rd5 {[%clk 0:00:10]} 59. Bf2 {[%clk 0:00:04]}  Rf5 {[%clk 0:00:11]} 60. Bg1 {[%clk 0:00:04]}  Rd5 {[%clk 0:00:10]} 61. h3 {[%clk 0:00:04]}  Nh6 {[%clk 0:00:10]} 62. Re2 {[%clk 0:00:05]}  Nf5 {[%clk 0:00:10]} 63. Bf2 {[%clk 0:00:06]}  Rd3 {[%clk 0:00:10]} 64. Ra2 {[%clk 0:00:06]}  Ng7 {[%clk 0:00:10]} 65. Rc2 {[%clk 0:00:05]}  Ne6 {[%clk 0:00:10]} 66. Re2 {[%clk 0:00:05]}  Kf7 {[%clk 0:00:11]} 67. Ra2 {[%clk 0:00:05]}  h4 {[%clk 0:00:07]} 68. gxh4 {[%clk 0:00:05]}  Nf4+ {[%clk 0:00:08]} 69. Kh2 {[%clk 0:00:03]}  gxh4 {[%clk 0:00:03]} 70. Ra4 {[%clk 0:00:04]}  Rxh3+ {[%clk 0:00:04]} 71. Kg1 {[%clk 0:00:04]}  Ng6 {[%clk 0:00:04]} 72. Kg2 {[%clk 0:00:04]}  Rd3 {[%clk 0:00:03]} 73. Bxh4 {[%clk 0:00:04]}  f5 {[%clk 0:00:04]} 74. Bg3 {[%clk 0:00:04]}  Kf6 {[%clk 0:00:04]} 75. Rb4 {[%clk 0:00:04]}  Kg5 {[%clk 0:00:04]} 76. Ra4 {[%clk 0:00:04]}  Rc3 {[%clk 0:00:04]} 77. Rb4 {[%clk 0:00:04]}  Rc6 {[%clk 0:00:04]} 78. Ra4 {[%clk 0:00:05]}  Rb6 {[%clk 0:00:04]} 79. Rc4 {[%clk 0:00:05]}  Rb3 {[%clk 0:00:05]} 80. Ra4 {[%clk 0:00:05]}  f4 {[%clk 0:00:05]} 81. Bxf4+ {[%clk 0:00:05]}  Nxf4+ {[%clk 0:00:06]} 82. Kf2 {[%clk 0:00:05]}  Kg4 {[%clk 0:00:07]} 83. Ra8 {[%clk 0:00:05]}  Rd3 {[%clk 0:00:06]} 84. Rg8+ {[%clk 0:00:05]}  Kf5 {[%clk 0:00:07]} 85. Rf8+ {[%clk 0:00:05]}  Ke5 {[%clk 0:00:08]} 86. Re8+ {[%clk 0:00:06]}  Ne6 {[%clk 0:00:08]} 87. Ke2 {[%clk 0:00:06]}  Rd6 {[%clk 0:00:09]} 88. Rh8 {[%clk 0:00:06]}  Ra6 {[%clk 0:00:09]} 89. Rb8 {[%clk 0:00:05]}  Nf4+ {[%clk 0:00:08]} 90. Kd2 {[%clk 0:00:05]}  Ra2+ {[%clk 0:00:07]} 91. Ke3 {[%clk 0:00:05]}  Ra3+ {[%clk 0:00:07]} 92. Kf2 {[%clk 0:00:05]}  Ne6 {[%clk 0:00:06]} 93. Ke2 {[%clk 0:00:05]}  Ke4 {[%clk 0:00:07]} 94. Re8 {[%clk 0:00:05]}  Ra2+ {[%clk 0:00:07]} 95. Kd1 {[%clk 0:00:05]}  Kd3 {[%clk 0:00:07]} 96. Ke1 {[%clk 0:00:06]}  Nd4 {[%clk 0:00:07]} 97. Kf1 {[%clk 0:00:05]}  Rb2 {[%clk 0:00:07]} 98. Re7 {[%clk 0:00:05]}  Nf5 {[%clk 0:00:07]} 99. Rd7+ {[%clk 0:00:04]}  Ke3 {[%clk 0:00:07]} 100. Rf7 {[%clk 0:00:03]}  Ng3+ {[%clk 0:00:03]} 101. Kg1 {[%clk 0:00:03]}  Ne4 {[%clk 0:00:02]} 102. Rf8 {[%clk 0:00:03]}  Ng5 {[%clk 0:00:03]} 103. Kf1 {[%clk 0:00:04]}  Ne4 {[%clk 0:00:02]} 104. Rf7 {[%clk 0:00:03]}  Rc2 {[%clk 0:00:02]} 105. Rf8 {[%clk 0:00:03]}  Ng3+ {[%clk 0:00:02]} 106. Kg1 {[%clk 0:00:03]}  Ke4 {[%clk 0:00:03]} 107. Rf4+ {[%clk 0:00:03]}  Ke5 {[%clk 0:00:03]} 108. Rf8 {[%clk 0:00:03]}  Nf5 {[%clk 0:00:03]} 109. Kf1 {[%clk 0:00:03]}  Nd4 {[%clk 0:00:04]} 110. Ke1 {[%clk 0:00:03]}  Ra2 {[%clk 0:00:04]} 111. Kd1 {[%clk 0:00:03]}  Ke4 {[%clk 0:00:05]} 112. Ke1 {[%clk 0:00:03]}  Nf3+ {[%clk 0:00:05]} 113. Kd1 {[%clk 0:00:03]}  Ne5 {[%clk 0:00:05]} 114. Rd8 {[%clk 0:00:03]}  Nc6 {[%clk 0:00:06]} 115. Re8+ {[%clk 0:00:03]}  Kd3 {[%clk 0:00:06]} 116. Ke1 {[%clk 0:00:03]}  Nd4 {[%clk 0:00:07]} 117. Kf1 {[%clk 0:00:04]}  Nf5 {[%clk 0:00:06]} 118. Ke1 {[%clk 0:00:04]}  Rh2 {[%clk 0:00:06]} 119. Re6 {[%clk 0:00:03]}  Ne3 {[%clk 0:00:05]} 120. Rd6+ {[%clk 0:00:03]}  Ke4 {[%clk 0:00:06]} 121. Rd4+ {[%clk 0:00:04]}  Kf3 {[%clk 0:00:06]} 122. Rf4+ {[%clk 0:00:04]}  Kg3 {[%clk 0:00:06]} 123. Rf3+ {[%clk 0:00:05]}  Kxf3 {[%clk 0:00:07]} 1/2-1/2


[Site "https://www.chess.com"]

[Event "Titled Tuesday Blitz November 29 Early 2022"]
[White "Dudzinski, Pawel"]
[Black "Cramling Bellon, Anna"]
[WhiteFideId "1117890"]
[BlackFideId "32009232"]
[WhiteElo "2086"]
[BlackElo "1972"]
[Result "1-0"]
[Round "08"]
[TimeControl "180+1"]
[Date "2022.11.30"]
[WhiteClock "0:00:02"]
[BlackClock "0:00:01"]

1. e4 {[%clk 0:02:56]}  c5 {[%clk 0:02:59]} 2. Nc3 {[%clk 0:02:55]}  Nc6 {[%clk 0:02:58]} 3. g3 {[%clk 0:02:56]}  g6 {[%clk 0:02:53]} 4. Bg2 {[%clk 0:02:56]}  Bg7 {[%clk 0:02:52]} 5. d3 {[%clk 0:02:57]}  e5 {[%clk 0:02:50]} 6. Be3 {[%clk 0:02:57]}  d6 {[%clk 0:02:51]} 7. Qd2 {[%clk 0:02:57]}  Nge7 {[%clk 0:02:50]} 8. Bh6 {[%clk 0:02:57]}  O-O {[%clk 0:02:50]} 9. h4 {[%clk 0:02:57]}  Bxh6 {[%clk 0:02:51]} 10. Qxh6 {[%clk 0:02:56]}  f6 {[%clk 0:02:51]} 11. Qd2 {[%clk 0:02:54]}  Nd4 {[%clk 0:02:43]} 12. O-O-O {[%clk 0:02:54]}  Qa5 {[%clk 0:02:37]} 13. Kb1 {[%clk 0:02:53]}  b5 {[%clk 0:02:27]} 14. h5 {[%clk 0:02:41]}  g5 {[%clk 0:02:19]} 15. f4 {[%clk 0:02:38]}  b4 {[%clk 0:01:45]} 16. Nce2 {[%clk 0:02:13]}  g4 {[%clk 0:01:25]} 17. fxe5 {[%clk 0:01:44]}  dxe5 {[%clk 0:01:20]} 18. c3 {[%clk 0:01:31]}  Be6 {[%clk 0:00:54]} 19. c4 {[%clk 0:00:37]}  Qb6 {[%clk 0:00:50]} 20. Nxd4 {[%clk 0:00:36]}  cxd4 {[%clk 0:00:44]} 21. Ne2 {[%clk 0:00:36]}  a5 {[%clk 0:00:32]} 22. Rhf1 {[%clk 0:00:36]}  Kh8 {[%clk 0:00:27]} 23. Nc1 {[%clk 0:00:31]}  a4 {[%clk 0:00:26]} 24. Rf2 {[%clk 0:00:30]}  Rac8 {[%clk 0:00:03]} 25. Bf1 {[%clk 0:00:26]}  f5 {[%clk 0:00:04]} 26. Qg5 {[%clk 0:00:18]}  Qc7 {[%clk 0:00:02]} 27. exf5 {[%clk 0:00:16]}  Nxf5 {[%clk 0:00:02]} 28. Qxg4 {[%clk 0:00:11]}  Ne3 {[%clk 0:00:01]} 29. Rxf8+ {[%clk 0:00:10]}  Rxf8 {[%clk 0:00:02]} 30. Qxe6 {[%clk 0:00:10]}  Nxd1 {[%clk 0:00:02]} 31. Bg2 {[%clk 0:00:06]}  Qg7 {[%clk 0:00:02]} 32. Be4 {[%clk 0:00:05]}  Ne3 {[%clk 0:00:02]} 33. c5 {[%clk 0:00:04]}  Qc7 {[%clk 0:00:01]} 34. Qh6 {[%clk 0:00:04]}  Qg7 {[%clk 0:00:01]} 35. Qd6 {[%clk 0:00:03]}  Rg8 {[%clk 0:00:01]} 36. c6 {[%clk 0:00:03]}  Qxg3 {[%clk 0:00:01]} 37. Qc7 {[%clk 0:00:03]}  Qg1 {[%clk 0:00:01]} 38. Qxh7# {[%clk 0:00:02]} 1-0


[Site "https://www.chess.com"]

[Event "Titled Tuesday Blitz November 29 Early 2022"]
[White "Fernandez Siles, Luis"]
[Black "Kulkarni, Vikramaditya"]
[WhiteFideId "2209420"]
[BlackFideId "5009847"]
[WhiteElo "2186"]
[BlackElo "2273"]
[Result "1-0"]
[Round "08"]
[TimeControl "180+1"]
[Date "2022.11.30"]
[WhiteClock "0:00:12"]
[BlackClock "0:00:01"]

1. e4 {[%clk 0:02:59]}  e6 {[%clk 0:02:59]} 2. d4 {[%clk 0:02:59]}  d5 {[%clk 0:02:59]} 3. Nd2 {[%clk 0:03:00]}  Nc6 {[%clk 0:02:56]} 4. Ngf3 {[%clk 0:02:58]}  Nf6 {[%clk 0:02:55]} 5. e5 {[%clk 0:02:58]}  Nd7 {[%clk 0:02:55]} 6. Be2 {[%clk 0:02:59]}  Be7 {[%clk 0:02:53]} 7. O-O {[%clk 0:02:55]}  O-O {[%clk 0:02:53]} 8. Re1 {[%clk 0:02:53]}  b6 {[%clk 0:02:53]} 9. c3 {[%clk 0:02:51]}  a5 {[%clk 0:02:53]} 10. Bd3 {[%clk 0:02:50]}  f5 {[%clk 0:02:49]} 11. exf6 {[%clk 0:02:49]}  Nxf6 {[%clk 0:02:46]} 12. Ne5 {[%clk 0:02:48]}  Qe8 {[%clk 0:02:33]} 13. Bb5 {[%clk 0:02:33]}  Bb7 {[%clk 0:02:31]} 14. Ndf3 {[%clk 0:02:32]}  a4 {[%clk 0:02:21]} 15. Ng5 {[%clk 0:02:28]}  Ne4 {[%clk 0:02:13]} 16. Nxe6 {[%clk 0:02:14]}  Nxf2 {[%clk 0:02:04]} 17. Qe2 {[%clk 0:01:53]}  Rf6 {[%clk 0:01:55]} 18. Nxc7 {[%clk 0:01:44]}  Qf8 {[%clk 0:01:43]} 19. Nd7 {[%clk 0:01:34]}  Bd6 {[%clk 0:01:22]} 20. Nxf6+ {[%clk 0:01:14]}  Qxf6 {[%clk 0:01:20]} 21. Nxa8 {[%clk 0:01:07]}  Bc8 {[%clk 0:00:59]} 22. Bxc6 {[%clk 0:00:55]}  Bxh2+ {[%clk 0:00:57]} 23. Kxh2 {[%clk 0:00:51]}  Qh4+ {[%clk 0:00:57]} 24. Kg1 {[%clk 0:00:49]}  Nh3+ {[%clk 0:00:57]} 25. Kf1 {[%clk 0:00:42]}  Qf6+ {[%clk 0:00:28]} 26. Qf3 {[%clk 0:00:42]}  Ba6+ {[%clk 0:00:28]} 27. Re2 {[%clk 0:00:27]}  Bxe2+ {[%clk 0:00:27]} 28. Kxe2 {[%clk 0:00:26]}  Ng1+ {[%clk 0:00:27]} 29. Kf2 {[%clk 0:00:19]}  Nxf3 {[%clk 0:00:25]} 30. Bxd5+ {[%clk 0:00:20]}  Kh8 {[%clk 0:00:23]} 31. Bxf3 {[%clk 0:00:20]}  Qh4+ {[%clk 0:00:22]} 32. Ke2 {[%clk 0:00:19]}  Qe7+ {[%clk 0:00:22]} 33. Be3 {[%clk 0:00:19]}  b5 {[%clk 0:00:18]} 34. Rh1 {[%clk 0:00:17]}  h6 {[%clk 0:00:18]} 35. Kd3 {[%clk 0:00:17]}  a3 {[%clk 0:00:16]} 36. b3 {[%clk 0:00:16]}  b4 {[%clk 0:00:15]} 37. c4 {[%clk 0:00:16]}  Qe6 {[%clk 0:00:12]} 38. d5 {[%clk 0:00:15]}  Qe5 {[%clk 0:00:11]} 39. Nb6 {[%clk 0:00:14]}  Qc3+ {[%clk 0:00:10]} 40. Ke4 {[%clk 0:00:14]}  Qc2+ {[%clk 0:00:10]} 41. Ke5 {[%clk 0:00:13]}  Qxa2 {[%clk 0:00:09]} 42. Bd4 {[%clk 0:00:13]}  Qxb3 {[%clk 0:00:06]} 43. d6 {[%clk 0:00:13]}  Qc2 {[%clk 0:00:01]} 44. d7 {[%clk 0:00:12]} 1-0


[Site "https://www.chess.com"]